﻿Body Name,Supplier ID,Supplier Name,Transaction Number,Their Ref,Date,Gross Value ,VAT Amount,Service Label,Service Code,Expenditure Code,Expenditure Category,Service Division Label
Blackpool Council,1089544,Andrew Mclean,49765,23-JUN-17,27/07/2017,261,0,Looked After Children,JBR,5507,Personal,Children'S Services
Blackpool Council,1089544,Andrew Mclean,49786,13-JUN-17,27/07/2017,569.97,0,Looked After Children,JBR,5577,Setting Up Home Allowance,Children'S Services
Blackpool Council,1089548,Jo Dixon,49788,13-JUN-17,27/07/2017,439.2,0,Looked After Children,JBR,5577,Setting Up Home Allowance,Children'S Services
Blackpool Council,1089548,Jo Dixon,49798,13-JUN-17,27/07/2017,564.96,0,Looked After Children,JBR,5577,Setting Up Home Allowance,Children'S Services
Blackpool Council,1092208,Tony Doyle,49865,21-JUN-17,27/07/2017,437.28,72.88,Corporate Services,FGA,3801,Other Expenses,Resources
Blackpool Council,1092208,Tony Doyle,49870,17-JUN-17,27/07/2017,984.55,164.09,Corporate Services,FGA,3531,Computer-H'Ware Purchase,Resources
Blackpool Council,1094474,Mandy Tythe-Mccallum,49883,21-JUN-17,27/07/2017,1621.84,270.31,Conferences,PRA,3801,Other Expenses,Places
Blackpool Council,1094474,Mandy Tythe-Mccallum,49885,07-JUN-17,27/07/2017,363.6,60.6,Conferences,PRA,3801,Other Expenses,Places
Blackpool Council,1106233,Susan Sheppard,50056,15-JUN-17,27/07/2017,410,0,Locality,JAB,5507,Personal,Children'S Services
Blackpool Council,1106256,Hiedi Livesey,50086,12-JUN-17,27/07/2017,255.49,0,Shared Care,SHACAR,3801,Other Expenses,Adult & Families
Blackpool Council,1107752,Robert Taylor,50202,20-JUN-17,27/07/2017,519.11,0,Illuminations - Operational,PJOPS,3801,Other Expenses,Community & Env Services
Blackpool Council,1107875,Arc,48015,14/06/2017,27/07/2017,345.8,0,Urgent Care,URGCAR,3101,Provisions,Adult & Families
Blackpool Council,1107875,Arc,48017,07/06/2017,27/07/2017,358.36,0,Urgent Care,URGCAR,3101,Provisions,Adult & Families
Blackpool Council,1107875,Arc,48023,28/06/2017,27/07/2017,309.02,0,Urgent Care,URGCAR,3101,Provisions,Adult & Families
Blackpool Council,1107875,Arc,48024,22/06/2017,27/07/2017,336.86,0,Urgent Care,URGCAR,3101,Provisions,Adult & Families
Blackpool Council,1107875,Arc,48026,08/06/2017,27/07/2017,316.13,52.69,Urgent Care,URGCAR,3041,Other Materials,Adult & Families
Blackpool Council,1107973,Anchorsholme Meals,48104,26/06/2017,27/07/2017,272.62,0,Catering Services,CATERG,3101,Provisions,Community & Env Services
Blackpool Council,1107973,Anchorsholme Meals,48109,28/06/2017,27/07/2017,265.81,0,Catering Services,CATERG,3101,Provisions,Community & Env Services
Blackpool Council,1107973,Anchorsholme Meals,48118,21/06/2017,27/07/2017,250.33,0,Catering Services,CATERG,3101,Provisions,Community & Env Services
Blackpool Council,1107975,Baines Endowed Meals,48151,14/06/2017,27/07/2017,267.84,0,Catering Services,CATERG,3101,Provisions,Community & Env Services
Blackpool Council,1107977,Bispham Endowed Meals,48211,19/06/2017,27/07/2017,296.21,0,Catering Services,CATERG,3101,Provisions,Community & Env Services
Blackpool Council,1107977,Bispham Endowed Meals,48224,12/06/2017,27/07/2017,279.8,0,Catering Services,CATERG,3101,Provisions,Community & Env Services
Blackpool Council,1107979,Blackpool Aspire Meals,48282,12/06/2017,27/07/2017,436.48,0,Catering Services,CATERG,3101,Provisions,Community & Env Services
Blackpool Council,1107979,Blackpool Aspire Meals,48285,05/06/2017,27/07/2017,393.41,0,Catering Services,CATERG,3101,Provisions,Community & Env Services
Blackpool Council,1107979,Blackpool Aspire Meals,48292,26/06/2017,27/07/2017,412.29,0,Catering Services,CATERG,3101,Provisions,Community & Env Services
Blackpool Council,1107979,Blackpool Aspire Meals,48294,19/06/2017,27/07/2017,374.27,0,Catering Services,CATERG,3101,Provisions,Community & Env Services
Blackpool Council,1107979,Blackpool Aspire Meals,48300,07/06/2017,27/07/2017,350.94,58.49,Catering Services,CATERG,3101,Provisions,Community & Env Services
Blackpool Council,1107979,Blackpool Aspire Meals,48317,12/06/2017,27/07/2017,367.95,61.32,Catering Services,CATERG,3041,Other Materials,Community & Env Services
Blackpool Council,1107988,Hawes Side Meals,48528,26/06/2017,27/07/2017,302.07,0,Catering Services,CATERG,3101,Provisions,Community & Env Services
Blackpool Council,1107988,Hawes Side Meals,48529,21/06/2017,27/07/2017,326.89,0,Catering Services,CATERG,3101,Provisions,Community & Env Services
Blackpool Council,1107988,Hawes Side Meals,48530,19/06/2017,27/07/2017,365.24,0,Catering Services,CATERG,3101,Provisions,Community & Env Services
Blackpool Council,1107988,Hawes Side Meals,48533,12/06/2017,27/07/2017,270.1,0,Catering Services,CATERG,3101,Provisions,Community & Env Services
Blackpool Council,1107988,Hawes Side Meals,48538,28/06/2017,27/07/2017,291.13,0,Catering Services,CATERG,3101,Provisions,Community & Env Services
Blackpool Council,1107990,Highfield Meals,48577,09/06/2017,27/07/2017,321.96,0,Catering Services,CATERG,3101,Provisions,Community & Env Services
Blackpool Council,1108004,Moor Park Meals,48857,13/06/2017,27/07/2017,256.37,0,Catering Services,CATERG,3101,Provisions,Community & Env Services
Blackpool Council,1108009,Park Meals,48948,26/06/2017,27/07/2017,336.72,0,Catering Services,CATERG,3101,Provisions,Community & Env Services
Blackpool Council,1108009,Park Meals,48949,19/06/2017,27/07/2017,274.37,0,Catering Services,CATERG,3101,Provisions,Community & Env Services
Blackpool Council,1108013,Revoe Meals,49059,19/06/2017,27/07/2017,367.48,0,Catering Services,CATERG,3101,Provisions,Community & Env Services
Blackpool Council,1108013,Revoe Meals,49078,12/06/2017,27/07/2017,285.56,0,Catering Services,CATERG,3101,Provisions,Community & Env Services
Blackpool Council,1108019,South Shore Academy Meals,49170,14/06/2017,27/07/2017,485.34,80.89,Catering Services,CATERG,3101,Provisions,Community & Env Services
Blackpool Council,1108019,South Shore Academy Meals,49182,19/06/2017,27/07/2017,362.64,0,Catering Services,CATERG,3101,Provisions,Community & Env Services
Blackpool Council,1108019,South Shore Academy Meals,49186,05/06/2017,27/07/2017,619.44,103.24,Catering Services,CATERG,3101,Provisions,Community & Env Services
Blackpool Council,1108019,South Shore Academy Meals,49204,28/06/2017,27/07/2017,302.94,50.49,Catering Services,CATERG,3101,Provisions,Community & Env Services
Blackpool Council,1108019,South Shore Academy Meals,49207,05/06/2017,27/07/2017,635.56,0,Catering Services,CATERG,3101,Provisions,Community & Env Services
Blackpool Council,1108019,South Shore Academy Meals,49210,21/06/2017,27/07/2017,334.19,55.7,Catering Services,CATERG,3041,Other Materials,Community & Env Services
Blackpool Council,1108019,South Shore Academy Meals,49213,19/06/2017,27/07/2017,255.24,42.54,Catering Services,CATERG,3101,Provisions,Community & Env Services
Blackpool Council,1108039,St Georges Meals,49433,21/06/2017,27/07/2017,289.86,48.31,Catering Services,CATERG,3101,Provisions,Community & Env Services
Blackpool Council,1108039,St Georges Meals,49437,19/06/2017,27/07/2017,283.74,47.29,Catering Services,CATERG,3041,Other Materials,Community & Env Services
Blackpool Council,1108039,St Georges Meals,49456,28/06/2017,27/07/2017,375.9,62.65,Catering Services,CATERG,3101,Provisions,Community & Env Services
Blackpool Council,1108039,St Georges Meals,49461,26/06/2017,27/07/2017,448.18,0,Catering Services,CATERG,3101,Provisions,Community & Env Services
Blackpool Council,1108039,St Georges Meals,49464,19/06/2017,27/07/2017,387.08,0,Catering Services,CATERG,3101,Provisions,Community & Env Services
Blackpool Council,1108039,St Georges Meals,49468,07/06/2017,27/07/2017,313.5,52.25,Catering Services,CATERG,3101,Provisions,Community & Env Services
Blackpool Council,1108039,St Georges Meals,49472,05/06/2017,27/07/2017,358.72,0,Catering Services,CATERG,3101,Provisions,Community & Env Services
Blackpool Council,1108039,St Georges Meals,49487,14/06/2017,27/07/2017,346.2,57.7,Catering Services,CATERG,3101,Provisions,Community & Env Services
Blackpool Council,1108040,Stanley Breakfast,49492,23/06/2017,27/07/2017,272.4,0,Free School Breakfasts,SCHBRK,3101,Provisions,Community & Env Services
Blackpool Council,1108044,Unity College Meals,49544,26/06/2017,27/07/2017,351.4,0,Catering Services,CATERG,3101,Provisions,Community & Env Services
Blackpool Council,1108044,Unity College Meals,49547,09/06/2017,27/07/2017,252.53,0,Catering Services,CATERG,3101,Provisions,Community & Env Services
Blackpool Council,1108044,Unity College Meals,49555,12/06/2017,27/07/2017,286.14,47.69,Catering Services,CATERG,3101,Provisions,Community & Env Services
Blackpool Council,1108044,Unity College Meals,49572,28/06/2017,27/07/2017,336.6,56.1,Catering Services,CATERG,3101,Provisions,Community & Env Services
Blackpool Council,1108044,Unity College Meals,49577,07/06/2017,27/07/2017,314.54,0,Catering Services,CATERG,3101,Provisions,Community & Env Services
Blackpool Council,1108044,Unity College Meals,49578,05/06/2017,27/07/2017,494.67,0,Catering Services,CATERG,3101,Provisions,Community & Env Services
Blackpool Council,1108044,Unity College Meals,49579,05/06/2017,27/07/2017,483.68,0,Catering Services,CATERG,3101,Provisions,Community & Env Services
Blackpool Council,1108044,Unity College Meals,49583,21/06/2017,27/07/2017,295.85,0,Catering Services,CATERG,3101,Provisions,Community & Env Services
Blackpool Council,1108044,Unity College Meals,49584,19/06/2017,27/07/2017,599.12,0,Catering Services,CATERG,3101,Provisions,Community & Env Services
Blackpool Council,1108044,Unity College Meals,49585,19/06/2017,27/07/2017,376.02,0,Catering Services,CATERG,3101,Provisions,Community & Env Services
Blackpool Council,1108044,Unity College Meals,49586,14/06/2017,27/07/2017,432.49,0,Catering Services,CATERG,3101,Provisions,Community & Env Services
Blackpool Council,1108044,Unity College Meals,49587,12/06/2017,27/07/2017,489.95,0,Catering Services,CATERG,3101,Provisions,Community & Env Services
Blackpool Council,1108044,Unity College Meals,49592,05/06/2017,27/07/2017,312,52,Catering Services,CATERG,3101,Provisions,Community & Env Services
Blackpool Council,1108044,Unity College Meals,49596,28/06/2017,27/07/2017,315.22,0,Catering Services,CATERG,3101,Provisions,Community & Env Services
Blackpool Council,1108044,Unity College Meals,49597,26/06/2017,27/07/2017,379.48,0,Catering Services,CATERG,3101,Provisions,Community & Env Services
Blackpool Council,1108044,Unity College Meals,49607,21/06/2017,27/07/2017,335.76,55.96,Catering Services,CATERG,3101,Provisions,Community & Env Services
Blackpool Council,1108044,Unity College Meals,49617,26/06/2017,27/07/2017,307.2,51.2,Catering Services,CATERG,3101,Provisions,Community & Env Services
Blackpool Council,1108045,Waterloo Breakfast,49622,16/06/2017,27/07/2017,540.25,0,Free School Breakfasts,SCHBRK,3101,Provisions,Community & Env Services
Blackpool Council,1108045,Waterloo Breakfast,49623,30/06/2017,27/07/2017,386.25,0,Free School Breakfasts,SCHBRK,3101,Provisions,Community & Env Services
Blackpool Council,1108045,Waterloo Breakfast,49627,23/06/2017,27/07/2017,540.25,0,Free School Breakfasts,SCHBRK,3101,Provisions,Community & Env Services
Blackpool Council,1111360,Langdale Day Service,49706,23/06/2017,27/07/2017,273.66,45.61,Shared Care,SHACAR,3041,Other Materials,Adult & Families
Blackpool Council,1111449,Fran Armstrong,50338,02-JUN-17,27/07/2017,354.09,0,Shared Care,SHACAR,3801,Other Expenses,Adult & Families
Blackpool Council,1111449,Fran Armstrong,50339,07-JUN-17,27/07/2017,356.46,0,Shared Care,SHACAR,3801,Other Expenses,Adult & Families
,,Count:,78,,,,,,,,,
,,,,,Sum:,30343.55,,,,,,
